bitfinex/quotes_ETHUSD_20250925
["timestamp","ask_amount","ask_price","bid_price","bid_amount"]
[1758759697427,3.12,4154.0,4153.8,0.4496]
[1758759697730,3.12,4154.0,4153.9,3.22344996]
[1758759697731,0.12,4154.0,4153.9,3.22344996]
[1758759697931,0.12,4154.5,4154.3,0.792]
[1758759698141,0.47,4154.4,4154.3,0.792]
[1758759698330,3.0,4154.3,4154.0,0.792]
[1758759698528,8.68207568,4154.4,4154.2,0.792]
[1758759698837,11.68207568,4154.4,4154.3,3.6487444]
[1758759699159,0.12,4154.9,4154.3,1.2416]
[1758759699374,8.21207568,4155.0,4154.6,3.19895216]
[1758759699525,8.21207568,4155.0,4154.4,0.47367086]
[1758759699526,7.025,4154.9,4154.7,1.2416]
[1758759699721,7.025,4154.9,4154.8,0.4496]
[1758759699925,7.025,4154.9,4154.8,1.2416]
[1758759700241,0.12,4155.1,4154.9,0.792]
[1758759700446,4.025,4155.1,4155.0,3.22280624]
[1758759700629,7.025,4155.1,4155.0,3.67240624]
[1758759700829,0.12,4155.4,4155.1,2.40663111]
[1758759701029,7.024,4155.3,4155.2,0.02406623]
[1758759701259,0.2668,4155.9,4155.2,0.02406623]
[1758759701260,0.021,4155.9,4155.2,1.39990362]
[1758759701471,0.021,4155.9,4155.0,0.792]
[1758759701472,0.021,4155.9,4155.0,2.40673886]
[1758759701755,0.021,4155.9,4154.9,2.006]
[1758759701756,8.21207568,4155.4,4154.9,0.4496]
[1758759701959,3.418,4155.3,4155.1,3.19867187]
[1758759702341,3.418,4155.3,4155.2,2.86522302]
[1758759702862,3.418,4155.3,4155.1,0.792]
[1758759702863,3.418,4155.3,4155.1,3.19866695]
[1758759703030,3.418,4155.3,4155.1,0.792]
[1758759703339,3.6584,4155.3,4155.1,0.792]
[1758759703659,3.6584,4155.3,4155.0,0.792]
[1758759703962,0.2404,4155.2,4155.0,0.792]
[1758759704280,3.418,4155.3,4155.2,2.40662302]
[1758759704796,3.418,4155.3,4155.1,3.65726452]
[1758759705003,3.418,4155.3,4155.0,0.792]
[1758759705567,3.418,4155.3,4154.8,0.792]
[1758759705876,3.418,4155.3,4153.8,2.40737644]
[1758759705877,8.21207568,4155.0,4153.8,2.40737644]
[1758759706077,8.21207568,4154.6,4154.5,0.792]
[1758759707096,8.21207568,4154.6,4154.5,3.19902852]
[1758759707461,8.21207568,4154.6,4154.5,0.792]
[1758759709095,11.21207568,4154.6,4154.5,0.792]
[1758759709302,11.45247568,4154.6,4154.5,0.792]
[1758759709794,3.0,4154.5,4154.1,0.792]
[1758759709985,4.2674,4154.4,4154.1,0.792]
[1758759710706,8.21207568,4154.2,4153.9,2.4073689]
[1758759710865,12.23907568,4154.2,4153.9,2.4073689]
[1758759711066,12.23907568,4154.2,4153.9,0.792]
[1758759711266,12.47947568,4154.2,4153.9,0.792]
[1758759711668,12.47947568,4154.2,4153.8,0.792]
[1758759711911,12.47947568,4154.2,4153.9,0.4586]
[1758759711912,4.027,4154.2,4153.9,0.4586]
[1758759712185,4.027,4154.2,4154.0,0.4586]
[1758759712397,4.027,4154.2,4153.9,2.40734661]
[1758759712605,0.12,4154.7,4154.3,0.792]
[1758759712824,3.0,4154.6,4154.4,2.8897439]
[1758759712986,3.0,4154.6,4154.5,2.86562852]
[1758759713512,4.147,4154.7,4154.6,3.19897058]
[1758759713513,7.027,4154.7,4154.6,3.19897058]
[1758759713822,7.027,4154.7,4154.6,3.65757058]
[1758759714224,7.027,4154.7,4153.2,0.72584129]
[1758759714225,3.0,4154.6,4153.2,0.72584129]
[1758759714430,8.21207568,4153.8,4153.2,0.72584129]
[1758759714718,4.035,4153.8,4153.7,0.792]
[1758759715633,3.0,4154.3,4154.0,0.792]
[1758759715784,2.40711484,4156.1,4154.1,0.0240726]
[1758759715785,7.035,4154.2,4154.1,0.0240726]
[1758759715981,7.037,4154.2,4154.1,3.65786029]
[1758759716283,3.0,4154.2,4154.1,3.65786029]
[1758759718009,3.0,4155.2,4154.5,0.792]
[1758759718210,3.0,4154.9,4154.6,0.8160697]
[1758759718409,4.037,4155.0,4154.8,2.40681067]
[1758759718586,4.037,4155.0,4154.9,0.4586]
[1758759718788,7.037,4155.0,4154.9,1.2506]
[1758759718982,7.037,4155.0,4154.9,3.65739679]
[1758759718983,4.037,4155.0,4154.9,3.65739679]
[1758759719323,8.45347568,4155.3,4155.0,3.19873411]
[1758759719324,4.037,4155.2,4155.0,3.19873411]
[1758759719525,7.037,4155.2,4155.1,0.792]
[1758759719834,7.037,4155.2,4155.1,1.2506]
[1758759720431,7.037,4155.2,4155.1,3.65728094]
[1758759720595,7.037,4155.2,4155.1,1.2506]
[1758759720796,7.037,4155.2,4155.1,0.792]
[1758759721098,3.2375,4155.2,4155.1,0.792]
[1758759722340,3.0,4155.2,4155.1,0.792]
[1758759724045,3.0,4155.2,4155.1,1.2618]
[1758759724248,3.0,4155.2,4155.1,3.66848094]
[1758759724620,3.0,4155.2,4155.1,1.2618]
[1758759724919,3.0,4155.2,4155.1,0.792]
[1758759725108,3.2375,4155.2,4155.1,0.792]
[1758759727247,3.0,4155.1,4154.4,2.40704395]
[1758759727456,8.21207568,4154.6,4154.5,3.31897331]
[1758759727642,4.034,4154.7,4154.6,3.19897058]
[1758759727955,8.21207568,4155.0,4154.9,2.40679679]
[1758759728259,7.034,4155.0,4154.9,3.66859679]
[1758759728460,0.001,4155.3,4155.2,3.19862302]
[1758759728633,0.001,4155.3,4155.2,3.34268925]
[1758759728836,0.001,4155.3,4155.2,3.81248925]
[1758759729039,0.001,4155.3,4155.2,18.28842302]
[1758759730342,0.001,4155.3,4155.2,17.81862302]
[1758759731025,0.001,4155.3,4155.2,18.28842302]
[1758759731560,0.001,4155.3,4155.2,20.62320248]
[1758759733224,0.001,4155.3,4155.2,18.28842302]
[1758759733667,0.001,4155.3,4155.2,3.78842302]
[1758759734140,0.001,4155.3,4155.2,18.28842302]
[1758759735142,0.001,4155.3,4155.2,22.32242302]
[1758759738090,0.001,4155.3,4155.2,14.62]
[1758759738231,4.6506,4155.3,4154.6,2.40696979]
[1758759738595,4.6506,4155.3,4154.6,2.40694128]
[1758759738596,8.21207568,4154.8,4154.6,2.40694128]
[1758759738760,8.21207568,4154.8,4154.3,4.036]
[1758759739070,0.2417,4154.7,4154.6,3.19897058]
[1758759740771,0.2417,4154.7,4154.1,0.4742]
[1758759740772,0.6176,4154.7,4154.0,0.002]
[1758759740955,4.2767,4154.6,4154.5,2.40702628]
[1758759741631,4.2767,4154.6,4154.4,2.40706965]
[1758759741828,0.2417,4154.5,4154.4,3.19906965]
[1758759743183,3.2417,4155.1,4154.6,3.19894766]
[1758759743396,3.0,4154.9,4154.6,3.22301736]
[1758759743763,0.2417,4154.8,4154.6,3.22301736]
[1758759743965,4.036,4154.7,4154.6,3.22301736]
[1758759744202,4.036,4154.7,4154.6,3.19894766]
[1758759744503,4.036,4154.7,4154.6,3.67314766]
[1758759744661,4.036,4154.7,4154.6,3.19894766]
[1758759745700,4.2777,4154.9,4154.7,2.40689537]
[1758759745893,4.036,4154.9,4154.5,0.792]
[1758759746116,4.034,4155.0,4154.7,0.792]
[1758759746260,8.21307568,4155.3,4155.2,3.19862302]
[1758759746261,0.001,4155.3,4155.2,3.19862302]
[1758759746760,0.2427,4155.3,4155.2,15.292]
[1758759747162,0.2427,4155.3,4155.2,0.792]
[1758759747364,0.2427,4155.3,4154.5,0.4742]
[1758759747582,8.21207568,4155.0,4154.9,3.19879679]
[1758759747930,8.21207568,4155.0,4154.9,17.69879679]
[1758759749104,11.45377568,4155.0,4154.7,0.12]
[1758759749305,0.12,4154.7,4154.4,0.792]
[1758759749697,0.2417,4154.6,4154.4,15.292]
[1758759749913,0.2417,4154.6,4154.0,0.122]
[1758759749914,0.2417,4154.5,4154.0,0.002]
[1758759750112,8.21207568,4154.2,4154.0,0.794]
[1758759750504,0.2417,4154.1,4154.0,15.294]
[1758759753038,8.21207568,4154.2,4154.1,3.19926029]
[1758759753330,0.12,4154.3,4154.2,0.792]
[1758759754622,0.3617,4154.3,4154.1,0.792]
[1758759754817,8.21207568,4154.2,4154.0,0.002]
[1758759755033,12.48777568,4154.2,4154.0,0.002]
[1758759755235,0.2417,4154.1,4154.0,0.002]
[1758759755433,6.02486029,4154.1,4154.0,0.002]
[1758759756707,13.11985222,4154.1,4154.0,0.002]
[1758759757833,20.21484415,4154.1,4154.0,0.002]
[1758759759318,20.21484415,4154.1,4153.6,0.002]
[1758759759319,3.0,4154.0,4153.6,0.002]
[1758759759519,12.50248404,4153.7,4153.6,0.002]
[1758759759719,16.53548404,4153.7,4153.6,0.002]
[1758759759908,17.15308404,4153.7,4153.6,0.002]
[1758759765246,2.40772397,4153.3,4153.2,0.002]
[1758759765452,5.40778195,4153.2,4153.1,0.02]
[1758759765663,6.01028195,4153.2,4153.1,0.02]
[1758759765839,5.63438195,4153.2,4153.1,0.02]
[1758759766184,6.01028195,4153.2,4153.1,0.02]
[1758759766858,2.40825371,4152.4,4152.1,0.02]
[1758759767166,7.09499193,4152.2,4152.1,0.02]
[1758759767366,9.50335376,4152.2,4152.1,0.02]
[1758759767744,12.50335376,4152.2,4152.1,0.02]
[1758759767946,12.72995376,4152.2,4152.1,0.02]
[1758759768253,13.10585376,4152.2,4152.1,0.02]
[1758759768455,2.40877526,4151.5,4151.3,0.4548]
[1758759768766,2.40877526,4151.5,4150.7,14.5]
[1758759768767,2.40894199,4151.2,4150.9,0.4548]
[1758759769068,7.034,4151.2,4150.9,0.4548]
[1758759769437,7.034,4151.2,4150.9,2.86386544]
[1758759769749,14.35559193,4151.2,4150.6,0.4548]
[1758759769952,7.2606,4151.2,4150.7,2.40917416]
[1758759770151,7.2606,4151.2,4150.8,2.40914252]
[1758759770569,7.2606,4151.2,4150.9,2.40911515]
[1758759770767,7.034,4151.2,4150.9,2.40911515]
[1758759770970,7.034,4151.2,4151.0,2.40902812]
[1758759771171,7.034,4151.2,4150.6,0.4548]
[1758759771362,7.034,4151.2,4150.7,2.40917889]
[1758759771546,7.034,4151.2,4150.8,2.40915919]
[1758759772518,7.034,4151.2,4150.9,2.40910738]
[1758759772672,7.034,4151.2,4150.7,2.40917752]
[1758759772873,7.034,4151.2,4150.6,2.86408433]
[1758759773177,7.034,4151.2,4150.8,2.40916844]
[1758759773688,7.034,4151.2,4150.7,2.40921884]
[1758759774008,7.034,4151.2,4150.6,0.4548]
[1758759774207,7.034,4151.2,4151.0,2.40905052]
[1758759774427,3.0,4151.2,4151.1,3.67580002]
[1758759774578,3.0,4151.2,4151.1,4.28669856]
[1758759775011,3.0,4151.2,4151.1,3.67580002]
[1758759775172,7.09499193,4151.6,4151.5,2.40876791]
[1758759775376,7.09499193,4151.6,4151.5,0.4548]
[1758759775690,7.09499193,4151.6,4151.5,3.65556791]
[1758759776627,4.034,4151.9,4151.8,3.20059386]
[1758759776774,7.09499193,4152.2,4151.8,1.58569888]
[1758759776975,11.12899193,4152.2,4152.1,3.20041983]
[1758759777220,14.12899193,4152.2,4152.1,3.65521983]
[1758759777522,11.12899193,4152.2,4152.1,3.65521983]
[1758759777890,7.09499193,4152.5,4152.4,3.20024583]
[1758759778213,14.12999193,4152.5,4152.4,3.65504583]
[1758759779721,10.09499193,4152.5,4152.4,3.65504583]
[1758759780032,14.12999193,4152.5,4152.4,3.65504583]
[1758759780246,3.0,4152.4,4151.9,0.4548]
[1758759780456,7.09499193,4152.2,4152.1,2.40841983]
[1758759780595,4.034,4152.3,4152.2,2.40836183]
[1758759780799,4.034,4152.3,4152.2,2.84536183]
[1758759781143,4.034,4152.3,4152.2,14.937]
[1758759781439,7.034,4152.3,4152.2,2.84536183]
[1758759783500,7.033,4152.3,4152.2,2.84536183]
[1758759785038,3.0,4152.3,4152.2,3.63736183]
[1758759785340,3.0,4152.3,4152.2,18.13736183]
[1758759785961,2.007,4153.1,4153.0,2.4078979]
[1758759785962,0.12,4153.1,4153.0,2.4078979]
[1758759786098,0.21450843,4153.2,4153.0,2.4078979]
[1758759786099,0.21450843,4153.2,4153.1,3.19983992]
[1758759786442,4.24750843,4153.2,4153.0,0.792]
[1758759786627,4.49410843,4153.2,4153.0,3.19989283]
[1758759786825,0.2466,4153.1,4153.0,3.19989283]
[1758759787006,7.24750843,4153.2,4153.1,3.19983992]
[1758759787647,3.0,4153.1,4152.9,2.40795483]
[1758759787851,7.033,4153.0,4152.8,0.792]
[1758759788057,7.2796,4153.0,4152.8,0.792]
[1758759788249,7.2796,4153.0,4152.6,0.792]
[1758759788433,7.2796,4153.0,4152.8,0.792]
[1758759788767,3.2466,4152.9,4152.6,0.792]
[1758759788948,4.033,4152.8,4152.6,0.792]
[1758759789149,4.033,4152.8,4152.5,0.12]
[1758759789150,3.0,4152.7,4152.5,0.12]
[1758759789452,3.0,4152.5,4152.1,0.912]
[1758759789765,3.0,4152.3,4152.1,0.12]
[1758759789969,4.033,4152.2,4152.1,0.12]
[1758759790166,4.033,4152.2,4151.6,2.40865995]
[1758759790167,4.2796,4152.2,4151.7,0.12]
[1758759790351,0.2466,4152.1,4151.7,0.12]
[1758759790553,3.0,4151.9,4151.1,4.055]
[1758759790730,3.0,4151.7,4151.3,0.12]
[1758759790926,4.034,4151.6,4151.3,0.12]
[1758759791236,4.034,4151.6,4151.3,0.557]
[1758759792160,4.034,4151.6,4151.4,0.792]
[1758759793149,4.2723,4151.6,4151.4,0.792]
[1758759793336,4.034,4151.6,4151.1,0.022]
[1758759793542,0.2383,4151.5,4151.1,0.814]
[1758759794968,0.2383,4151.5,4151.1,1.2471]
[1758759795184,4.034,4151.6,4151.3,0.792]
[1758759795351,7.034,4151.6,4151.5,0.792]
[1758759795547,3.0,4151.6,4151.5,0.792]
[1758759795747,3.0,4151.6,4151.5,1.2251]
[1758759796145,4.033,4151.7,4151.5,1.2251]
[1758759796146,0.12,4152.3,4151.7,0.792]
[1758759796462,3.0,4152.1,4151.9,0.792]
[1758759796661,4.033,4152.1,4151.9,1.2251]
[1758759796866,3.0,4152.0,4151.9,0.792]
[1758759797060,0.12,4152.6,4151.9,0.12]
[1758759797266,3.0,4152.4,4152.1,0.792]
[1758759797486,3.0,4152.4,4152.0,0.792]
[1758759797663,3.0,4152.4,4152.0,1.2251]
[1758759797865,4.033,4152.5,4152.0,1.2251]
[1758759798199,3.0,4152.4,4152.0,1.2251]
[1758759798404,3.0,4152.4,4152.1,0.4331]
[1758759798551,0.2383,4152.9,4152.1,0.4331]
[1758759798552,2.007,4153.2,4152.5,0.792]
[1758759798750,2.007,4153.2,4152.6,0.4331]
[1758759798751,0.12,4153.0,4152.6,0.4331]
[1758759799054,3.12,4153.0,4152.8,0.792]
[1758759799453,3.12,4153.0,4152.7,0.4331]
[1758759799653,0.3759,4153.8,4152.7,0.4331]
[1758759799654,0.2393,4154.2,4153.0,0.792]
[1758759799853,0.001,4154.2,4153.5,0.792]
[1758759800154,3.2383,4153.6,4152.5,0.792]
[1758759800353,3.2383,4153.6,4153.3,3.19970276]
[1758759800672,3.2383,4153.6,4153.3,0.792]
[1758759800852,0.6142,4153.5,4152.7,0.792]
[1758759801181,3.0,4153.3,4152.9,0.792]
[1758759801386,0.2383,4153.2,4153.0,0.792]
[1758759801562,4.035,4153.1,4153.0,0.792]
[1758759801763,4.035,4153.1,4152.9,0.792]
[1758759801990,3.2383,4153.0,4152.9,0.792]
[1758759802286,3.2383,4153.0,4152.8,0.792]
[1758759802481,3.2383,4153.0,4152.9,0.792]
[1758759802647,3.0,4153.0,4152.9,0.792]
[1758759802855,3.2383,4153.0,4152.7,0.792]
[1758759803070,0.2383,4152.9,4152.7,0.792]
[1758759803466,3.0,4153.0,4152.8,0.792]
[1758759803667,3.2383,4153.0,4152.7,0.792]
[1758759803880,0.2383,4152.9,4152.7,0.792]
[1758759804390,4.035,4152.8,4152.4,14.9331]
[1758759804566,4.2733,4152.7,4152.5,0.792]
[1758759804762,0.2383,4152.6,4152.4,14.5]
[1758759805285,0.2383,4152.6,4151.5,2.84186285]
[1758759805286,3.02240296,4152.5,4151.5,2.84186285]
[1758759805486,7.2733,4152.4,4151.7,2.40859969]
[1758759805690,9.44324879,4152.4,4151.8,0.792]
[1758759805985,0.2383,4152.3,4151.8,0.792]
[1758759806164,0.2383,4152.2,4151.8,0.792]
[1758759806488,0.2383,4152.1,4151.8,0.792]
[1758759806871,4.2733,4152.1,4151.8,0.792]
[1758759807674,0.2383,4152.0,4151.8,0.792]
[1758759808387,0.2383,4152.0,4151.8,3.20058921]
[1758759808587,4.035,4152.1,4151.8,3.20058921]
[1758759808994,4.2733,4152.1,4151.8,3.20058921]
[1758759809290,4.2733,4152.1,4151.8,17.70058921]
[1758759809493,4.2733,4152.1,4151.8,15.292]
[1758759810090,4.2733,4152.1,4151.8,17.70058164]
[1758759810421,4.2733,4152.1,4151.9,2.40853149]
[1758759810613,4.035,4152.1,4151.8,17.70058634]
[1758759810809,4.035,4152.1,4151.8,15.292]
[1758759811220,4.035,4152.1,4151.9,2.40849376]
[1758759811594,4.035,4152.1,4151.9,2.40851822]
[1758759811926,4.035,4152.1,4151.9,2.84161938]
[1758759812527,4.035,4152.1,4151.8,15.292]
[1758759812737,3.2383,4152.0,4151.6,0.12]
[1758759812899,3.2383,4152.0,4151.7,0.792]
[1758759813098,0.2383,4151.9,4151.7,0.792]
[1758759813293,0.2383,4151.8,4151.7,15.292]
[1758759813526,0.2383,4151.8,4151.3,6.44186456]
[1758759813527,4.2703,4151.8,4151.3,0.792]
[1758759813726,0.2383,4151.7,4151.3,0.792]
[1758759814096,0.2383,4151.7,4151.5,0.792]
[1758759814605,0.2383,4151.7,4151.1,0.022]
[1758759814606,0.2383,4151.6,4151.1,0.814]
[1758759814801,4.2703,4151.5,4151.1,0.814]
[1758759815000,4.2703,4151.5,4151.2,14.5]
[1758759815210,0.2383,4151.4,4151.2,14.5]
[1758759815534,3.2383,4151.4,4151.2,14.5]
[1758759815909,0.2383,4151.3,4151.2,14.5]
[1758759816110,5.64718396,4151.3,4151.1,0.022]
[1758759816324,7.3903,4151.2,4151.1,0.022]
[1758759817038,9.79924199,4151.2,4151.1,0.022]
[1758759817535,7.3903,4151.2,4151.1,0.022]
[1758759817845,9.79924199,4151.2,4151.1,0.022]
[1758759818001,10.17514199,4151.2,4151.1,0.022]
[1758759819042,12.18214199,4151.2,4151.1,0.022]
[1758759825155,11.80624199,4151.2,4151.1,0.022]
[1758759825460,11.80624199,4151.2,4148.2,0.4748]
[1758759825461,3.28461209,4151.1,4148.2,0.4748]
[1758759825624,3.28461209,4151.1,4148.1,0.02]
[1758759825625,3.0,4149.2,4148.1,0.02]
[1758759825824,3.0,4149.2,4148.8,0.4748]
[1758759826147,3.0,4149.2,4149.1,0.4948]
[1758759826323,7.042,4149.2,4149.1,0.4948]
[1758759826654,7.043,4149.2,4149.1,1.2868]
[1758759826858,7.043,4149.2,4149.1,1.65650629]
[1758759827022,3.0,4149.2,4149.1,1.2868]
[1758759827221,7.043,4149.2,4149.1,0.4948]
[1758759827873,2.4095227,4150.2,4149.1,1.2868]
[1758759827874,0.2272,4150.2,4149.1,1.2868]
[1758759828042,3.0,4150.0,4149.2,0.4748]
[1758759828358,6.05,4150.1,4149.2,0.4748]
[1758759828359,6.05,4149.9,4149.3,0.792]
[1758759828567,3.0,4150.2,4149.5,0.792]
[1758759828721,5.007,4150.0,4149.5,0.792]
[1758759828921,5.007,4150.0,4149.4,2.40997958]
[1758759828922,3.0,4149.8,4149.7,0.792]
[1758759829158,3.0,4149.8,4149.6,0.792]
[1758759829332,2.007,4150.0,4149.1,0.02]
[1758759829333,3.0,4149.6,4149.1,0.02]
[1758759829531,2.007,4150.0,4149.1,0.02]
[1758759829532,3.0,4149.4,4149.1,0.02]
[1758759829732,4.043,4149.3,4149.2,0.4748]
[1758759830657,4.043,4149.3,4149.1,0.02]
[1758759831337,4.043,4149.3,4149.2,14.5]
[1758759831546,3.0,4149.2,4149.1,0.02]
[1758759831856,7.64430315,4149.2,4149.1,0.02]
[1758759832262,5.2342,4149.2,4149.1,0.02]
[1758759832444,7.64430315,4149.2,4149.1,0.02]
[1758759833581,8.02223985,4149.2,4149.1,0.02]
[1758759834369,5.6121367,4149.2,4149.1,0.02]
[1758759834567,5.3849367,4149.2,4149.1,0.02]
[1758759835064,7.79503985,4149.2,4149.1,0.02]
[1758759835244,5.63730315,4149.2,4149.1,0.02]
[1758759835441,11.68930315,4149.2,4149.1,0.02]
[1758759836057,12.06520315,4149.2,4149.1,0.02]
[1758759838672,6.39117126,4149.2,4149.1,0.02]
[1758759838902,12.44217126,4149.2,4149.1,0.02]
[1758759839882,12.06420315,4149.2,4149.1,0.02]
[1758759840234,11.68830315,4149.2,4149.1,0.02]
[1758759840555,5.63730315,4149.2,4149.1,0.02]
[1758759840860,11.68730315,4149.2,4149.1,0.02]
[1758759844250,12.44117277,4149.2,4149.1,0.02]
[1758759845177,12.06320315,4149.2,4149.1,1e-08]
[1758759845382,2.41027742,4148.9,4148.8,0.002]
[1758759845561,5.41027742,4148.9,4148.8,0.002]
[1758759845889,11.69027742,4148.9,4148.8,0.002]
[1758759846690,12.06617742,4148.9,4148.8,0.002]
[1758759847813,11.69027742,4148.9,4148.8,0.002]
[1758759848202,12.06617742,4148.9,4148.8,0.002]
[1758759848408,12.06517742,4148.9,4148.8,0.002]
[1758759850522,2.41068415,4148.2,4148.1,0.02]
[1758759850722,9.45168415,4148.2,4148.1,0.02]
[1758759850888,9.68168415,4148.2,4148.1,0.02]
[1758759852308,9.45168415,4148.2,4148.1,0.02]
[1758759852707,9.69218415,4148.2,4148.1,0.02]
[1758759853114,9.69218415,4148.2,4148.1,0.022]
[1758759854289,10.0702455,4148.2,4148.1,0.022]
[1758759854606,9.8297455,4148.2,4148.1,0.022]
[1758759855007,11.8477455,4148.2,4148.1,0.022]
[1758759856128,12.0872455,4148.2,4148.1,0.022]
[1758759856432,12.4631455,4148.2,4148.1,0.022]
[1758759857127,12.0872455,4148.2,4148.1,0.022]
[1758759858036,6.0292455,4148.2,4148.1,0.022]
[1758759858412,12.0882455,4148.2,4148.1,0.022]
[1758759859884,11.71018415,4148.2,4148.1,0.022]
[1758759860250,12.08608415,4148.2,4148.1,0.022]
[1758759860648,2.4108585,4147.9,4147.1,0.02]
[1758759860950,13.64840286,4147.2,4147.1,0.02]
[1758759861264,19.70640286,4147.2,4147.1,0.02]
[1758759863725,19.70640286,4147.2,4146.2,0.4723]
[1758759863726,5.41132357,4147.1,4146.2,0.4723]
[1758759864334,11.82934699,4146.2,4146.1,0.02]
[1758759865368,0.12,4146.2,4146.1,0.4923]
[1758759865573,3.12,4146.2,4146.1,0.4923]
[1758759866058,3.0,4146.9,4146.2,2.41184699]
[1758759866263,3.0,4146.7,4146.3,0.4723]
[1758759866478,3.0,4146.5,4146.4,2.41173065]
[1758759866634,7.05,4146.5,4146.4,2.41173065]
[1758759866842,7.05,4146.5,4146.4,0.4723]
[1758759867150,3.0,4146.5,4146.4,2.88403065]
[1758759867463,3.0,4146.5,4146.4,4.20761733]
[1758759867635,7.05,4146.5,4146.4,4.20761733]
[1758759868862,2.009,4147.1,4146.5,0.792]
[1758759869044,4.05,4147.0,4146.6,0.4723]
[1758759869241,6.46138825,4147.0,4146.6,0.4723]
[1758759869464,4.05,4147.0,4146.6,0.4723]
[1758759869664,4.05,4147.0,4146.7,0.4723]
[1758759869874,4.05,4147.0,4146.8,0.4723]
[1758759870165,3.0,4147.5,4146.9,0.4723]
[1758759870372,3.0,4147.8,4146.9,0.4723]
[1758759870531,0.4482,4148.4,4147.0,2.41138172]
[1758759870532,2.009,4147.7,4147.0,2.41138172]
[1758759870734,3.0,4147.5,4147.1,0.4723]
[1758759870934,3.0,4147.3,4146.7,0.792]
[1758759871246,3.0,4147.1,4146.7,3.20354122]
[1758759871443,3.0,4146.9,4146.8,2.88379802]
[1758759871840,7.051,4146.9,4146.8,2.88379622]
[1758759872469,7.051,4146.9,4146.8,4.3106482]
[1758759872470,3.0,4146.9,4146.8,4.3106482]
[1758759873040,3.0,4146.9,4146.8,4.28653322]
[1758759873345,3.0,4146.9,4146.8,4.28653502]
[1758759873558,3.0,4146.9,4146.8,0.002]
[1758759873886,3.0,4146.9,4146.8,0.4743]
[1758759874290,3.0,4146.9,4146.8,2.88579802]
[1758759874584,3.0,4146.9,4146.8,1.2663]
[1758759874898,3.0,4146.9,4146.8,3.67779802]
[1758759875049,3.0,4146.9,4146.8,4.28673821]
[1758759875252,7.052,4146.9,4146.8,4.28673821]
[1758759875983,7.052,4146.9,4146.8,4.40673821]
[1758759876362,3.0,4146.9,4146.8,4.40673821]
[1758759876686,7.052,4146.9,4146.8,4.40673821]
[1758759877582,7.051,4146.9,4146.8,4.40673821]
[1758759878898,7.05,4146.9,4146.8,4.40673821]
[1758759880117,3.0,4146.9,4146.8,4.40673821]
[1758759880428,7.05,4146.9,4146.8,4.40673821]
[1758759880919,3.0,4146.9,4146.8,4.40673821]
[1758759881087,7.049,4146.9,4146.8,4.40673821]
[1758759881511,2.65101623,4148.5,4147.8,2.41089111]
[1758759881805,2.009,4147.9,4147.7,0.4723]
[1758759882004,0.12,4148.0,4147.9,2.4108585]
[1758759882210,7.17,4148.0,4147.9,2.8538585]
[1758759882396,3.0,4147.9,4147.7,3.64592558]
[1758759882591,7.049,4147.8,4147.7,0.792]
[1758759882775,3.0,4147.7,4147.6,0.792]
[1758759882974,0.2452,4147.7,4147.5,0.12]
[1758759883174,3.0,4147.5,4147.4,2.41114915]
[1758759884006,3.0,4148.2,4147.7,2.41097475]
[1758759884210,3.0,4148.0,4147.8,3.64588978]
[1758759884507,3.0,4147.8,4147.7,3.20296333]
[1758759884695,4.2972,4147.8,4147.7,3.20296333]
[1758759884895,0.2452,4148.6,4147.7,0.443]
[1758759885098,6.061,4148.5,4148.1,2.41073267]
[1758759885330,6.061,4148.5,4147.4,2.41112758]
[1758759885331,3.6758,4148.4,4147.3,0.443]
[1758759885481,3.0,4148.2,4147.6,0.792]
[1758759885682,3.0,4148.0,4147.8,2.41090512]
[1758759885911,7.052,4147.9,4147.8,2.41090512]
[1758759887416,4.7278,4147.9,4147.4,3.20312774]
[1758759887618,0.6758,4147.8,4147.5,2.41108927]
[1758759887915,4.2962,4147.7,4147.5,2.41108927]
[1758759888416,4.2962,4147.7,4147.4,2.41113463]
[1758759888714,0.2452,4147.6,4147.4,2.41113463]
[1758759888918,4.051,4147.5,4147.4,3.20313463]
[1758759889413,4.7268,4147.5,4147.2,2.41121677]
[1758759889616,4.2962,4147.5,4147.2,2.41121677]
[1758759889808,0.2452,4147.4,4147.1,0.792]
[1758759889987,2.009,4148.0,4147.3,0.792]
[1758759890181,3.0,4147.8,4146.9,0.443]
[1758759890395,3.0,4147.6,4147.0,0.792]
[1758759890687,7.14081313,4147.7,4146.8,0.002]
[1758759890688,3.0,4147.2,4146.8,0.794]
[1758759890878,7.11656633,4146.9,4146.8,3.20549802]
[1758759891084,4.054,4147.1,4147.0,3.20338172]
[1758759891284,3.0,4147.4,4147.1,0.792]
[1758759891485,3.0,4147.5,4147.4,0.792]
[1758759891786,7.054,4147.5,4147.4,0.792]
[1758759891993,3.0,4147.4,4147.2,0.792]
[1758759892199,3.0,4147.4,4147.2,3.20326358]
[1758759892523,7.054,4147.5,4147.4,0.792]
[1758759892852,7.054,4147.5,4147.3,2.85420729]
[1758759892853,3.0,4147.4,4147.3,1.235]
[1758759893314,4.054,4147.5,4147.4,0.792]